fUST/lending_fUST_20240322
["ID","MTS","AMOUNT","RATE_DAILY","PERIOD"]
[320056638,1711120242193,-500.0,0.00027397,2]
[320056639,1711120242202,-500.0,0.00027397,2]
[320056640,1711120242212,-261.36262508,0.00027397,2]
[320056641,1711120242225,-1744.96,0.00027397,2]
[320056642,1711120242234,-2023.38,0.00027397,2]
[320056643,1711120242243,-2122.93,0.00027397,2]
[320056644,1711120242252,-368.83574321,0.00027397,2]
[320056645,1711120242262,-500.0,0.00027397,2]
[320056646,1711120242271,-500.0,0.00027397,2]
[320056647,1711120242281,-500.0,0.00027397,2]
[320056648,1711120242290,-500.0,0.00027397,2]
[320056649,1711120242299,-500.0,0.00027397,2]
[320056650,1711120242308,-500.0,0.00027397,2]
[320056651,1711120242318,-500.0,0.00027397,2]
[320056652,1711120242328,-500.0,0.00027397,2]
[320056653,1711120242339,-500.0,0.00027397,2]
[320056654,1711120242349,-500.0,0.00027397,2]
[320056655,1711120242359,-188.02131333,0.00027397,2]
[320056656,1711120242369,-500.0,0.00027397,2]
[320056657,1711120242379,-500.0,0.00027397,2]
[320056658,1711120242390,-500.0,0.00027397,2]
[320056659,1711120242402,-500.0,0.00027397,2]
[320056660,1711120242413,-500.0,0.00027397,2]
[320056661,1711120242424,-500.0,0.00027397,2]
[320056662,1711120242434,-151.0,0.00027397,2]
[320056663,1711120242444,-576.3,0.00027397,2]
[320056664,1711120242455,-1647.47,0.00027397,2]
[320056665,1711120242465,-500.0,0.00027397,2]
[320056666,1711120242483,-500.0,0.00027397,2]
[320056667,1711120242494,-500.0,0.00027397,30]
[320056668,1711120242506,-500.0,0.00027397,2]
[320056669,1711120242517,-500.0,0.00027397,2]
[320056670,1711120242528,-669.93,0.00027397,2]
[320056671,1711120242538,-500.0,0.00027397,2]
[320056672,1711120242548,-520.81521444,0.00027397,2]
[320056673,1711120242558,-911.79,0.00027397,2]
[320056674,1711120242568,-209.97294759,0.00027397,2]
[320056675,1711120242576,-500.0,0.00027397,2]
[320056676,1711120242583,-500.0,0.00027397,2]
[320056677,1711120242591,-500.0,0.00027397,2]
[320056678,1711120242599,-1482.95,0.00027397,2]
[320056679,1711120242608,-500.0,0.00027397,2]
[320056680,1711120242618,-500.0,0.00027397,2]
[320056681,1711120242627,-500.0,0.00027397,2]
[320056682,1711120242637,-500.0,0.00027397,2]
[320056683,1711120242647,-500.0,0.00027397,2]
[320056684,1711120242658,-1408.21,0.00027397,2]
[320056685,1711120242667,-500.0,0.00027397,2]
[320056686,1711120242677,-3641.33,0.00027397,2]
[320056687,1711120242685,-500.0,0.00027397,2]
[320056688,1711120242694,-500.0,0.00027397,2]
[320056689,1711120242704,-500.0,0.00027397,2]
[320056690,1711120242713,-500.0,0.00027397,2]
[320056691,1711120242729,-500.0,0.00027397,2]
[320056692,1711120242739,-500.0,0.00027397,2]
[320056693,1711120242748,-500.0,0.00027397,2]
[320056694,1711120242758,-500.0,0.00027397,2]
[320056695,1711120242767,-500.0,0.00027397,2]
[320056696,1711120242776,-500.0,0.00027397,2]
[320056697,1711120242786,-500.0,0.00027397,2]
[320056698,1711120242795,-500.0,0.00027397,2]
[320056699,1711120242804,-500.0,0.00027397,2]
[320056700,1711120242814,-1650.9,0.00027397,2]
[320056702,1711120242824,-501.99497031,0.00027397,2]
[320056704,1711120242833,-517.47,0.00027397,2]
[320056706,1711120242842,-166.666666,0.00027397,2]
[320056708,1711120242852,-225.84733248,0.00027404,2]
[320056710,1711120242861,-600.72,0.00027499,2]
[320056712,1711120242870,-796.41698053,0.000275,17]
[320056722,1711120242991,-1000.0,0.00027845,2]
[320056723,1711120243001,-1617.07893366,0.00027944,2]
[320056724,1711120243011,-600.72,0.00027944,2]
[320056725,1711120243020,-600.72,0.00027944,2]
[320056726,1711120243031,-600.72,0.00027944,2]
[320056727,1711120243041,-600.72,0.00027944,2]
[320056728,1711120243051,-600.85,0.00027944,2]
[320056729,1711120243062,-500.0,0.00027945,2]
[320056730,1711120243072,-500.0,0.00027945,2]
[320056731,1711120243082,-500.0,0.00027945,2]
[320056732,1711120243091,-500.0,0.00027945,2]
[320056733,1711120243100,-500.0,0.00027945,2]
[320056734,1711120243109,-502.06254263,0.00027945,2]
[320056736,1711120243118,-500.0,0.00027945,2]
[320056738,1711120243128,-500.0,0.00027945,2]
[320056739,1711120243138,-500.0,0.00027945,2]
[320056741,1711120243149,-500.0,0.00027945,2]
[320056742,1711120243159,-500.0,0.00027945,2]
[320056743,1711120243169,-500.0,0.00027945,2]
[320056744,1711120243179,-500.0,0.00027945,2]
[320056745,1711120243188,-500.0,0.00027945,2]
[320056747,1711120243198,-500.0,0.00027945,2]
[320056748,1711120243208,-500.0,0.00027945,2]
[320056749,1711120243217,-166.34391731,0.00027945,2]
[320056750,1711120243232,-516.37168215,0.00027945,2]
[320056751,1711120243242,-500.0,0.00027945,2]
[320056752,1711120243251,-500.0,0.00027945,2]
[320056753,1711120243260,-500.0,0.00027945,2]
[320056755,1711120243270,-500.0,0.00027945,2]
[320056757,1711120243279,-500.0,0.00027945,2]
[320056758,1711120243288,-500.0,0.00027945,2]
[320056759,1711120243297,-500.0,0.00027945,2]
[320056760,1711120243306,-500.0,0.00027945,2]
[320056761,1711120243315,-500.0,0.00027945,2]
[320056762,1711120243325,-500.0,0.00027945,2]
[320056764,1711120243334,-501.22912965,0.00027945,2]
[320056766,1711120243343,-500.0,0.00027945,2]
[320056767,1711120243352,-629.13,0.00027945,2]
[320056769,1711120243361,-500.0,0.00027945,2]
[320056771,1711120243370,-729.16,0.00027945,2]
[320056773,1711120243379,-500.0,0.00027945,2]
[320056775,1711120243388,-500.0,0.00027945,2]
[320056776,1711120243397,-500.0,0.00027945,2]
[320056778,1711120243407,-500.0,0.00027945,2]
[320056779,1711120243416,-500.0,0.00027945,2]
[320056781,1711120243426,-1127.96,0.00027945,2]
[320056783,1711120243435,-458.29010584,0.00027945,2]
[320056785,1711120243445,-500.0,0.00027945,2]
[320056787,1711120243454,-500.0,0.00027945,2]
[320056789,1711120243464,-500.0,0.00027945,2]
[320056791,1711120243475,-500.0,0.00027945,2]
[320056793,1711120243484,-500.0,0.00027945,2]
[320056795,1711120243493,-500.0,0.00027945,2]
[320056797,1711120243503,-1473.44,0.00027945,2]
[320056799,1711120243513,-500.0,0.00027945,2]
[320056801,1711120243522,-500.0,0.00027945,2]
[320056803,1711120243531,-500.0,0.00027945,2]
[320056805,1711120243540,-1485.15,0.00027945,2]
[320056807,1711120243550,-543.31,0.00027945,2]
[320056809,1711120243560,-623.15,0.00027945,2]
[320056810,1711120243569,-500.0,0.00027945,2]
[320056812,1711120243578,-500.0,0.00027945,2]
[320056814,1711120243588,-771.98,0.00027945,2]
[320056816,1711120243598,-500.0,0.00027945,2]
[320056818,1711120243607,-500.0,0.00027945,2]
[320056820,1711120243618,-608.24,0.00027945,2]
[320056823,1711120243627,-500.0,0.00027945,2]
[320056824,1711120243636,-500.0,0.00027945,2]
[320056826,1711120243645,-934.44,0.00027945,2]
[320056829,1711120243655,-500.0,0.00027945,2]
[320056830,1711120243664,-1988.49,0.00027945,2]
[320056832,1711120243673,-500.0,0.00027945,2]
[320056834,1711120243682,-500.0,0.00027945,2]
[320056837,1711120243691,-954.18,0.00027945,2]
[320056839,1711120243702,-500.0,0.00027945,2]
[320056841,1711120243711,-500.0,0.00027945,2]
[320056842,1711120243720,-1000.0,0.00027945,2]
[320056845,1711120243734,-500.0,0.00027945,2]
[320056847,1711120243743,-500.0,0.00027945,2]
[320056849,1711120243753,-809.68,0.00027945,2]
[320056851,1711120243762,-500.0,0.00027945,2]
[320056853,1711120243771,-500.0,0.00027945,2]
[320056854,1711120243780,-1373.87,0.00027945,2]
[320056856,1711120243790,-538.94,0.00027945,2]
[320056859,1711120243799,-500.0,0.00027945,2]
[320056860,1711120243809,-574.95937404,0.00027945,2]
[320056862,1711120243819,-500.0,0.00027945,2]
[320056864,1711120243828,-2752.98,0.00027945,2]
[320056867,1711120243838,-500.0,0.00027945,2]
[320056868,1711120243848,-500.0,0.00027945,2]
[320056870,1711120243858,-1428.35,0.00027945,2]
[320056872,1711120243868,-500.0,0.00027945,2]
[320056875,1711120243878,-500.0,0.00027945,2]
[320056876,1711120243888,-500.0,0.00027945,2]
[320056878,1711120243897,-500.0,0.00027945,2]
[320056880,1711120243907,-500.0,0.00027945,2]
[320056882,1711120243916,-500.0,0.00027945,2]
[320056884,1711120243925,-500.0,0.00027945,2]
[320056886,1711120243935,-500.0,0.00027945,2]
[320056888,1711120243943,-500.0,0.00027945,2]
[320056890,1711120243952,-637.77,0.00027945,2]
[320056892,1711120243962,-500.0,0.00027945,2]
[320056894,1711120243977,-500.0,0.00027945,2]
[320056896,1711120243990,-500.0,0.00027945,2]
[320056898,1711120244001,-500.0,0.00027945,2]
[320056900,1711120244011,-500.0,0.00027945,2]
[320056902,1711120244023,-500.0,0.00027945,2]
[320056904,1711120244036,-500.0,0.00027945,2]
[320056907,1711120244046,-500.0,0.00027945,2]
[320056908,1711120244057,-500.0,0.00027945,2]
[320056910,1711120244067,-500.0,0.00027945,2]
[320056912,1711120244078,-500.0,0.00027945,2]
[320056914,1711120244088,-500.0,0.00027945,2]
[320056916,1711120244098,-500.0,0.00027945,2]
[320056918,1711120244109,-500.0,0.00027945,2]
[320056921,1711120244120,-500.0,0.00027945,2]
[320056922,1711120244129,-500.0,0.00027945,2]
[320056925,1711120244139,-500.0,0.00027945,2]
[320056926,1711120244150,-500.0,0.00027945,2]
[320056928,1711120244160,-502.14253907,0.00027945,2]
[320056930,1711120244171,-500.0,0.00027945,2]
[320056933,1711120244182,-500.0,0.00027945,2]
[320056935,1711120244192,-500.0,0.00027945,2]
[320056937,1711120244203,-500.0,0.00027945,2]
[320056939,1711120244212,-500.0,0.00027945,2]
[320056941,1711120244226,-500.0,0.00027945,2]
[320056943,1711120244236,-500.0,0.00027945,2]
[320056944,1711120244245,-500.0,0.00027945,2]
[320056946,1711120244255,-500.0,0.00027945,2]
[320056948,1711120244266,-500.0,0.00027945,2]
[320056950,1711120244275,-500.0,0.00027945,2]
[320056952,1711120244285,-500.0,0.00027945,2]
[320056954,1711120244294,-500.0,0.00027945,2]
[320056956,1711120244303,-500.0,0.00027945,2]
[320056958,1711120244313,-500.0,0.00027945,2]
[320056960,1711120244322,-500.0,0.00027945,2]
[320056962,1711120244331,-500.0,0.00027945,2]
[320056964,1711120244341,-500.0,0.00027945,2]
[320056965,1711120244350,-158.36715322,0.00027945,2]
[320056967,1711120244359,-522.82320032,0.00027945,2]
[320056969,1711120244368,-500.0,0.00027945,2]
[320056971,1711120244377,-352.49416645,0.00027945,2]
[320056973,1711120244386,-500.0,0.00027945,2]
[320056975,1711120244395,-500.0,0.00027945,2]
[320056978,1711120244405,-500.0,0.00027945,2]
[320056979,1711120244414,-500.0,0.00027945,2]
[320056981,1711120244424,-21708.19,0.00027945,2]
[320056983,1711120244433,-500.0,0.00027945,2]
[320056985,1711120244442,-500.0,0.00027945,2]
[320056988,1711120244452,-500.0,0.00027945,2]
[320056990,1711120244461,-500.0,0.00027945,2]
[320056992,1711120244475,-500.0,0.00027945,2]
[320056993,1711120244484,-500.0,0.00027945,2]
[320056995,1711120244494,-210.83739809,0.00027945,2]
[320056997,1711120244504,-4542.77,0.00027945,2]
[320056999,1711120244513,-500.0,0.00027945,2]
[320057001,1711120244523,-500.0,0.00027945,2]
[320057003,1711120244533,-500.0,0.00027945,2]
[320057005,1711120244543,-500.0,0.00027945,2]
[320057007,1711120244552,-500.0,0.00027945,2]
[320057009,1711120244561,-320.95695272,0.00027945,2]
[320057011,1711120244570,-500.0,0.00027945,2]
[320057013,1711120244579,-500.0,0.00027945,2]
[320057015,1711120244588,-500.0,0.00027945,2]
[320057017,1711120244597,-1525.38,0.00027945,2]
[320057019,1711120244606,-500.0,0.00027945,2]
[320057021,1711120244615,-500.0,0.00027945,2]
[320057023,1711120244625,-500.0,0.00027945,2]
[320057025,1711120244635,-544.02,0.00027945,2]
[320057027,1711120244645,-500.0,0.00027945,2]
[320057029,1711120244654,-500.0,0.00027945,2]
[320057031,1711120244663,-500.0,0.00027945,2]
[320057033,1711120244673,-1805.24,0.00027945,2]
[320057035,1711120244683,-500.0,0.00027945,2]
[320057037,1711120244692,-1000.0,0.00027945,2]
[320057039,1711120244701,-500.0,0.00027945,2]
[320057041,1711120244711,-394.71182017,0.00027945,2]
[320057043,1711120244720,-500.0,0.00027945,2]
[320057044,1711120244734,-842.37,0.00027945,2]
[320057046,1711120244743,-1722.12,0.00027945,2]
[320057048,1711120244752,-500.0,0.00027945,2]
[320057050,1711120244761,-4089.38,0.00027945,2]
[320057052,1711120244771,-500.0,0.00027945,2]
[320057054,1711120244780,-500.0,0.00027945,2]
[320057056,1711120244791,-500.0,0.00027945,2]
[320057058,1711120244800,-1379.31,0.00027945,2]
[320057060,1711120244810,-500.26798743,0.00027945,2]
[320057062,1711120244819,-500.0,0.00027945,2]
[320057064,1711120244829,-500.0,0.00027945,2]
[320057066,1711120244839,-500.0,0.00027945,2]
[320057068,1711120244850,-2507.64,0.00027945,2]
[320057070,1711120244860,-500.0,0.00027945,2]
[320057072,1711120244871,-500.0,0.00027945,2]
[320057074,1711120244881,-500.0,0.00027945,2]
[320057076,1711120244892,-443.86633735,0.00027945,2]
[320057078,1711120244902,-672.94,0.00027945,2]
[320057080,1711120244912,-6650.86,0.00027945,2]
[320057082,1711120244921,-1168.74,0.00027945,2]
[320057084,1711120244931,-500.0,0.00027945,2]
[320057086,1711120244940,-16582.04,0.00027945,2]
[320057088,1711120244950,-1915.96,0.00027945,2]
[320057089,1711120244960,-500.0,0.00027945,2]
[320057091,1711120244975,-500.0,0.00027945,2]
[320057093,1711120244995,-500.0,0.00027945,2]
[320057095,1711120245015,-590.39,0.00027945,2]
[320057097,1711120245033,-470.35247504,0.00027945,2]
[320057098,1711120245045,-500.0,0.00027945,2]
[320057099,1711120245057,-3745.45,0.00027945,2]
[320057100,1711120245068,-1833.39,0.00027945,2]
[320057101,1711120245078,-500.0,0.00027945,2]
[320057102,1711120245087,-500.0,0.00027945,2]
[320057103,1711120245097,-500.0,0.00027945,2]
[320057104,1711120245106,-1744.96,0.00027945,2]
[320057105,1711120245115,-2023.38,0.00027945,2]
[320057106,1711120245124,-2122.93,0.00027945,2]
[320057107,1711120245134,-500.0,0.00027945,2]
[320057108,1711120245144,-500.0,0.00027945,2]
[320057109,1711120245153,-500.0,0.00027945,2]
[320057110,1711120245163,-500.0,0.00027945,2]
[320057111,1711120245172,-500.0,0.00027945,2]
[320057112,1711120245181,-500.0,0.00027945,2]
[320057113,1711120245190,-500.0,0.00027945,2]
[320057114,1711120245200,-500.0,0.00027945,2]
[320057115,1711120245209,-500.0,0.00027945,2]
[320057116,1711120245219,-500.0,0.00027945,2]
[320057117,1711120245232,-500.0,0.00027945,2]
[320057118,1711120245241,-500.0,0.00027945,2]
[320057119,1711120245252,-500.0,0.00027945,2]
[320057120,1711120245261,-500.0,0.00027945,2]
[320057121,1711120245271,-151.0,0.00027945,2]
[320057122,1711120245281,-576.3,0.00027945,2]
[320057123,1711120245290,-1647.47,0.00027945,2]
[320057124,1711120245300,-500.0,0.00027945,2]
[320057125,1711120245310,-500.0,0.00027945,2]
[320057126,1711120245319,-500.0,0.00027945,30]
[320057127,1711120245329,-500.0,0.00027945,2]
[320057128,1711120245341,-500.0,0.00027945,2]
[320057129,1711120245351,-669.93,0.00027945,2]
[320057130,1711120245360,-500.0,0.00027945,2]
[320057131,1711120245370,-911.79,0.00027945,2]
[320057132,1711120245379,-500.0,0.00027945,2]
[320057133,1711120245388,-500.0,0.00027945,2]
[320057134,1711120245397,-1482.95,0.00027945,2]
[320057135,1711120245407,-500.0,0.00027945,2]
[320057136,1711120245417,-500.0,0.00027945,2]
[320057137,1711120245426,-500.0,0.00027945,2]
[320057138,1711120245435,-500.0,0.00027945,2]
[320057139,1711120245445,-1408.21,0.00027945,2]
[320057140,1711120245454,-3641.33,0.00027945,2]
[320057141,1711120245463,-500.0,0.00027945,2]
[320057142,1711120245475,-500.0,0.00027945,2]
[320057143,1711120245484,-500.0,0.00027945,2]
[320057144,1711120245494,-500.0,0.00027945,2]
[320057145,1711120245503,-500.0,0.00027945,2]
[320057146,1711120245512,-500.0,0.00027945,2]
[320057147,1711120245521,-500.0,0.00027945,2]
[320057148,1711120245530,-500.0,0.00027945,2]
[320057149,1711120245539,-500.0,0.00027945,2]
[320057150,1711120245549,-1650.9,0.00027945,2]
[320057151,1711120245559,-517.47,0.00027945,2]
[320057152,1711120245569,-1000.0,0.00028,2]
[320057153,1711120245579,-166.666666,0.00028038,2]
[320057154,1711120245588,-997.0,0.0002805,5]
[320057155,1711120245598,-500.0,0.00028493,2]
[320057156,1711120245609,-500.0,0.00028493,2]
[320057157,1711120245619,-500.0,0.00028493,2]
[320057158,1711120245629,-500.0,0.00028493,2]
[320057159,1711120245639,-500.0,0.00028493,2]
[320057160,1711120245649,-500.0,0.00028493,2]
[320057161,1711120245659,-500.0,0.00028493,2]
[320057162,1711120245670,-500.0,0.00028493,2]
[320057163,1711120245779,-500.0,0.00028493,2]
[320057164,1711120245789,-500.0,0.00028493,2]
[320057165,1711120245799,-500.0,0.00028493,2]
[320057166,1711120245810,-500.0,0.00028493,2]
[320057167,1711120245819,-500.0,0.00028493,2]
[320057168,1711120245828,-500.37151895,0.00028493,2]
[320057169,1711120245838,-500.0,0.00028493,2]
[320057170,1711120245847,-500.0,0.00028493,2]
[320057171,1711120245857,-500.0,0.00028493,2]
[320057173,1711120245867,-500.0,0.00028493,2]
[320057176,1711120245876,-500.0,0.00028493,2]
[320057178,1711120245885,-500.0,0.00028493,2]
[320057181,1711120245894,-629.13,0.00028493,2]
[320057183,1711120245903,-500.0,0.00028493,2]
[320057186,1711120245912,-729.16,0.00028493,2]
[320057188,1711120245921,-500.0,0.00028493,2]
[320057191,1711120245930,-500.0,0.00028493,2]
[320057194,1711120245940,-500.0,0.00028493,2]
[320057196,1711120245949,-500.0,0.00028493,2]
[320057198,1711120245958,-1127.96,0.00028493,2]
[320057200,1711120245968,-500.0,0.00028493,2]
[320057202,1711120245984,-500.0,0.00028493,2]
[320057204,1711120245994,-500.0,0.00028493,2]
[320057206,1711120246004,-500.0,0.00028493,2]
[320057208,1711120246015,-500.0,0.00028493,2]
[320057210,1711120246027,-1473.44,0.00028493,2]
[320057212,1711120246039,-500.0,0.00028493,2]
[320057215,1711120246049,-500.0,0.00028493,2]
[320057218,1711120246062,-500.0,0.00028493,2]
[320057221,1711120246073,-1485.15,0.00028493,2]
[320057224,1711120246084,-543.31,0.00028493,2]
[320057227,1711120246095,-623.15,0.00028493,2]
[320057229,1711120246105,-500.0,0.00028493,2]
[320057232,1711120246115,-500.0,0.00028493,2]
[320057235,1711120246125,-771.98,0.00028493,2]
[320057239,1711120246134,-500.0,0.00028493,2]
[320057241,1711120246145,-500.0,0.00028493,2]
[320057244,1711120246155,-500.0,0.00028493,2]
[320057248,1711120246165,-934.44,0.00028493,2]
[320057251,1711120246175,-500.0,0.00028493,2]
[320057253,1711120246184,-1988.49,0.00028493,2]
[320057257,1711120246194,-500.0,0.00028493,2]
[320057260,1711120246203,-954.18,0.00028493,2]
[320057262,1711120246212,-530.99909235,0.00028493,2]
[320057264,1711120246221,-500.0,0.00028493,2]
[320057266,1711120246237,-1000.0,0.00028493,2]
[320057268,1711120246245,-500.0,0.00028493,2]
[320057270,1711120246255,-809.68,0.00028493,2]
[320057272,1711120246264,-535.326623,0.00028493,2]
[320057274,1711120246274,-500.0,0.00028493,2]
[320057276,1711120246284,-1373.87,0.00028493,2]
[320057278,1711120246293,-538.94,0.00028493,2]
[320057280,1711120246302,-500.0,0.00028493,2]
[320057282,1711120246311,-500.0,0.00028493,2]
[320057284,1711120246321,-2752.98,0.00028493,2]
[320057286,1711120246330,-500.0,0.00028493,2]
[320057288,1711120246339,-500.0,0.00028493,2]
[320057290,1711120246349,-1428.35,0.00028493,2]
[320057292,1711120246358,-500.0,0.00028493,2]
[320057294,1711120246367,-500.0,0.00028493,2]
[320057296,1711120246376,-452.52073159,0.00028493,2]
[320057298,1711120246385,-500.0,0.00028493,2]
[320057300,1711120246394,-500.0,0.00028493,2]
[320057302,1711120246403,-504.78091388,0.00028493,2]
[320057303,1711120246412,-500.0,0.00028493,2]
[320057305,1711120246421,-500.0,0.00028493,2]
[320057307,1711120246430,-500.0,0.00028493,2]
[320057308,1711120246439,-637.77,0.00028493,2]
[320057309,1711120246449,-500.0,0.00028493,2]
[320057310,1711120246458,-500.0,0.00028493,2]
[320057311,1711120246467,-500.0,0.00028493,2]
[320057312,1711120246480,-500.0,0.00028493,2]
[320057313,1711120246489,-500.0,0.00028493,2]
[320057314,1711120246498,-500.0,0.00028493,2]
[320057315,1711120246507,-500.0,0.00028493,2]
[320057316,1711120246517,-500.0,0.00028493,2]
[320057317,1711120246526,-500.0,0.00028493,2]
[320057318,1711120246535,-505.2617893,0.00028493,2]
[320057319,1711120246544,-500.0,0.00028493,2]
[320057320,1711120246553,-500.0,0.00028493,2]
[320057321,1711120246563,-500.0,0.00028493,2]
[320057322,1711120246572,-500.0,0.00028493,2]
[320057323,1711120246580,-500.0,0.00028493,2]
[320057324,1711120246589,-500.0,0.00028493,2]
[320057325,1711120246599,-410.01180871,0.00028493,2]
[320057326,1711120246608,-500.0,0.00028493,2]
[320057327,1711120246617,-500.0,0.00028493,2]
[320057328,1711120246626,-500.0,0.00028493,2]
[320057329,1711120246635,-500.0,0.00028493,2]
[320057330,1711120246645,-500.0,0.00028493,2]
[320057331,1711120246654,-500.0,0.00028493,2]
[320057332,1711120246664,-500.0,0.00028493,2]
[320057333,1711120246673,-500.0,0.00028493,2]
[320057334,1711120246682,-500.0,0.00028493,2]
[320057335,1711120246692,-509.0,0.00028493,2]
[320057336,1711120246701,-500.0,0.00028493,2]
[320057337,1711120246710,-500.0,0.00028493,2]
[320057338,1711120246719,-500.0,0.00028493,2]
[320057339,1711120246732,-500.0,0.00028493,2]
[320057340,1711120246742,-500.0,0.00028493,2]
[320057341,1711120246751,-8211.54718672,0.00028493,2]
[320057360,1711120247068,-903.97138554,0.00027397,2]
[320057364,1711120247279,-409.62455985,0.00023374,2]
[320057365,1711120247289,-174.33383685,0.00023374,2]
[320057366,1711120247299,-1478.0626698,0.00027396,2]
[320057368,1711120247310,-131.74820092,0.00027396,2]
[320057370,1711120247319,-289.37743373,0.00027396,2]
[320057372,1711120247328,-2817.3822357,0.00027397,2]
[320057373,1711120247340,-11762.34109073,0.00027397,2]
[320057377,1711120247571,-430.26757965,0.00023372,2]
[320057378,1711120247581,-132.48447236,0.00023373,2]
[320057379,1711120247597,-65.75662873,0.00023373,2]
[320057380,1711120247606,-931.38591908,0.00023373,2]
[320057381,1711120247615,-323.75701421,0.00023373,2]
[320057382,1711120247624,-155.05737123,0.00023373,2]
[320057383,1711120247633,-179.29073254,0.00023373,2]
[320057384,1711120247643,-293.46710233,0.00023373,2]
[320057386,1711120247653,-469.55924245,0.00023373,2]
[320057387,1711120247662,-229.35644676,0.00023373,2]
[320057389,1711120247672,-808.79552476,0.00023373,2]
[320057391,1711120247681,-815.88819739,0.00023373,2]
[320057393,1711120247689,-1300.61505009,0.00023373,2]
[320057395,1711120247699,-314.94039187,0.00027396,2]
[320057397,1711120247707,-617.28162156,0.00027396,2]
[320057399,1711120247716,-495.07658841,0.00027397,2]
[320057417,1711120248994,-697.3338,0.00027397,2]
[320057449,1711121336461,309.75219824,0.00018654,2]
[320057452,1711121366933,122.86370731,0.000189,2]
[320057453,1711121366958,893.65271861,0.000189,2]
[320057460,1711121404806,906.60291117,0.000189,2]
[320057461,1711121426802,604.40194078,0.000189,2]
[320057513,1711121433140,-155.0480649,0.00022018,2]
[320057515,1711121433153,-487.92325292,0.00022019,2]
[320057517,1711121433164,-155.05737123,0.0002202,2]
[320057519,1711121433176,-685.47138469,0.0002202,2]
[320057521,1711121433188,-155.05737123,0.00022021,2]
[320057523,1711121433201,-155.05737123,0.00022022,2]
[320057525,1711121433212,-164.497557,0.00022037,2]
[320057527,1711121433224,-876.88094129,0.00023235,2]
[320057529,1711121433235,-183.19032645,0.00023236,2]
[320057531,1711121433247,-206.24255815,0.00023272,2]
[320057534,1711121433258,-1476.92381232,0.00023316,2]
[320057539,1711121433273,-1839.83797092,0.00023316,2]
[320057673,1711121438792,-44439.59019064,0.00023316,2]
[320057674,1711121438801,-15499.9,0.00023317,2]
[320057675,1711121438810,-1168.37959275,0.00023318,2]
[320057676,1711121438820,-968.4261848,0.00023336,2]
[320057677,1711121438830,-267.65491813,0.00023372,2]
[320057678,1711121438839,-155.298033,0.00023372,2]
[320057679,1711121438848,-156.35481367,0.00023372,2]
[320057680,1711121438857,-404.69308339,0.00023372,2]
[320057681,1711121438869,-1016.51642592,0.000239,2]
[320057682,1711121438879,-175.55338279,0.00024873,2]
[320057683,1711121438889,-24900.0,0.00024874,2]
[320057684,1711121438902,-566.158292,0.00024874,2]
[320057685,1711121438911,-151.79180619,0.00025717,2]
[320057686,1711121438920,-151.79180619,0.00025717,2]
[320057687,1711121438929,-3817.0,0.00027,2]
[320057688,1711121438939,-7752.82337168,0.00027,2]
[320057689,1711121438948,-2000.0,0.00027,2]